bitfinex-derivatives/quotes_ETHF0:USTF0_20260204
["timestamp","ask_amount","ask_price","bid_price","bid_amount"]
[1770174496630,3.90964846,2261.1,2260.6,1.02607998]
[1770174496927,3.90964846,2261.2,2260.6,1.25129242]
[1770174497130,0.16763742,2261.5,2260.6,1.25129242]
[1770174497622,3.90964846,2261.3,2260.6,1.25129242]
[1770174497825,3.90964846,2261.2,2260.6,1.25129242]
[1770174498025,3.90964846,2261.3,2260.7,0.864]
[1770174498531,0.00363367,2262.2,2260.8,0.16207998]
[1770174499326,0.00363367,2262.2,2261.2,0.16207998]
[1770174499528,0.00363367,2262.2,2261.5,0.16207998]
[1770174499731,0.00363367,2262.2,2261.6,0.865]
[1770174501728,0.00363367,2262.2,2261.7,0.22137]
[1770174502128,0.16763742,2262.6,2261.7,0.22137]
[1770174502324,0.16763742,2262.6,2261.8,0.22135]
[1770174502625,0.16763742,2262.6,2261.8,0.38695654]
[1770174502826,0.15333091,2263.2,2261.8,0.38695654]
[1770174503022,0.1565741,2263.2,2261.8,0.38695654]
[1770174503224,0.1565741,2263.2,2261.9,0.22135]
[1770174503631,0.1565741,2263.2,2262.0,0.22134]
[1770174504032,0.1565741,2263.2,2262.2,0.22132]
[1770174504235,0.1565741,2263.2,2262.3,0.865]
[1770174505430,0.1565741,2263.2,2261.7,0.22136]
[1770174505632,0.1565741,2263.2,2261.8,0.865]
[1770174506230,0.1565741,2263.2,2261.5,0.16560654]
[1770174506231,0.15333091,2263.0,2261.5,0.16560654]
[1770174506433,0.15333091,2263.0,2261.6,0.865]
[1770174506828,0.15333091,2263.0,2261.5,0.86961158]
[1770174507332,0.15333091,2263.0,2261.5,0.00561158]
[1770174507531,39.28080715,2262.9,2261.5,0.00561158]
[1770174507835,0.15333091,2262.8,2261.5,0.00561158]
[1770174508038,0.15333091,2262.7,2261.3,0.2214]
[1770174508233,0.15333091,2262.6,2261.3,0.38700654]
[1770174508533,0.15333091,2262.6,2261.3,0.16560654]
[1770174508731,0.15333091,2262.6,2261.2,0.864]
[1770174509133,0.15333091,2262.6,2261.2,0.8677058]
[1770174509429,0.15333091,2262.6,2261.5,0.16560654]
[1770174510238,0.15333091,2262.6,2261.4,0.22139]
[1770174510435,0.15333091,2262.6,2261.2,0.16931234]
[1770174511032,43.72180715,2262.6,2261.2,0.0037058]
[1770174511228,0.15333091,2262.5,2261.2,0.0037058]
[1770174511835,0.15333091,2262.5,2261.2,0.16931234]
[1770174512132,0.15333091,2262.4,2261.2,0.16931234]
[1770174513432,0.15333091,2262.4,2261.2,0.0037058]
[1770174514233,0.15333091,2262.4,2261.2,0.16931234]
[1770174514533,0.15333091,2262.3,2261.2,0.16931234]
[1770174514928,0.15333091,2262.3,2261.2,0.0037058]
[1770174515134,0.15333091,2262.2,2261.2,0.0037058]
[1770174515335,0.15333091,2262.1,2260.9,0.16560654]
[1770174516227,0.15333091,2262.0,2260.9,0.16560654]
[1770174516431,0.15333091,2262.0,2260.9,0.16980371]
[1770174517136,0.15333091,2262.0,2261.0,0.16560654]
[1770174525041,0.15333091,2261.9,2261.0,0.16560654]
[1770174528544,39.28080715,2262.2,2261.1,0.16560654]
[1770174529642,39.12747624,2262.4,2261.2,0.16560654]
[1770174530649,0.16043813,2262.3,2261.2,0.16560654]
[1770174531047,39.12747624,2262.4,2261.2,0.38701654]
[1770174531345,0.16043813,2262.3,2261.3,0.15820868]
[1770174533647,39.28791437,2262.6,2261.4,0.15820868]
[1770174533850,39.28791437,2262.6,2261.6,0.15820868]
[1770174534046,0.16043813,2262.6,2261.6,0.15820868]
[1770174534246,39.28791437,2262.6,2261.7,0.15820868]
[1770174534951,39.12747624,2262.7,2261.7,0.15820868]
[1770174535354,39.12747624,2262.8,2261.9,0.15820868]
[1770174535852,0.16043813,2262.9,2261.9,0.15820868]
[1770174536552,39.12747624,2263.0,2262.1,0.15899755]
[1770174536745,39.29557565,2263.1,2262.3,0.15899755]
[1770174537252,0.16809941,2263.1,2262.3,0.15899755]
[1770174538349,39.13071943,2263.2,2262.3,0.15899755]
[1770174538551,0.00324319,2263.2,2262.3,0.15899755]
[1770174539053,0.1713426,2263.2,2262.3,0.15899755]
[1770174539953,0.00324319,2263.2,2262.4,0.15899755]
[1770174540255,0.00324319,2263.2,2262.5,0.15899755]
[1770174540455,10.288,2263.8,2262.9,0.15899755]
[1770174540652,0.16809941,2263.8,2262.9,1.02399755]
[1770174541147,0.16809941,2263.8,2262.9,0.865]
[1770174541546,0.17127904,2263.8,2262.9,0.865]
[1770174542258,0.17127904,2263.8,2262.9,1.02399755]
[1770174542952,0.00317963,2263.8,2263.0,0.38022755]
[1770174543159,6.5158236,2264.6,2263.4,0.2212]
[1770174543357,39.12747624,2264.8,2263.4,0.2212]
[1770174543658,0.16809941,2265.3,2263.9,0.15899755]
[1770174544157,0.17157307,2265.3,2263.9,0.15899755]
[1770174545058,0.17157307,2265.3,2264.0,0.15899755]
[1770174545857,0.17157307,2265.3,2263.7,0.38016755]
[1770174546155,0.16809941,2265.1,2263.8,0.15899755]
[1770174547050,0.16809941,2266.0,2264.6,0.15899755]
[1770174547249,0.16809941,2266.0,2264.7,0.15899755]
[1770174547455,0.00347366,2265.8,2264.7,0.15899755]
[1770174547656,0.16809941,2265.7,2264.7,0.15899755]
[1770174548053,0.00347366,2265.6,2264.7,0.16312889]
[1770174548358,0.17157307,2265.6,2264.7,0.16312889]
[1770174548558,0.00347366,2265.5,2264.7,0.16312889]
[1770174548758,0.16809941,2265.6,2264.7,0.16312889]
[1770174548962,0.00347366,2265.4,2264.7,0.16312889]
[1770174549260,0.00347366,2265.5,2264.7,0.16312889]
[1770174550259,0.16809941,2265.6,2264.7,0.16312889]
[1770174550558,0.17157307,2265.6,2264.7,0.16312889]
[1770174550862,0.00347366,2265.5,2264.7,0.16312889]
[1770174551559,0.17157307,2265.5,2264.7,0.16312889]
[1770174552062,0.00347366,2265.4,2264.7,0.16312889]
[1770174553362,0.00347366,2265.3,2264.7,0.00413134]
[1770174553861,0.00347366,2265.2,2264.7,0.00413134]
[1770174554059,0.00347366,2265.3,2264.7,0.00413134]
[1770174554554,0.17157307,2265.2,2264.7,0.00413134]
[1770174554761,0.16809941,2265.2,2264.3,0.15899755]
[1770174555161,0.17157307,2265.2,2264.3,0.15899755]
[1770174555859,0.17157307,2265.2,2264.3,0.16272749]
[1770174556564,0.00347366,2264.9,2264.3,0.00372994]
[1770174556762,0.16809941,2265.0,2264.3,0.00372994]
[1770174556959,0.00347366,2264.8,2264.3,0.00372994]
[1770174557365,0.16809941,2265.0,2264.3,0.00372994]
[1770174557568,0.16809941,2264.8,2264.3,0.00372994]
[1770174557768,0.16809941,2264.8,2264.0,0.15899755]
[1770174558067,0.00347366,2264.1,2263.3,0.15899755]
[1770174558262,0.16809941,2264.2,2263.3,0.15899755]
[1770174558468,0.00347366,2264.0,2263.3,0.15899755]
[1770174558769,0.00772835,2264.0,2263.3,0.16268623]
[1770174559067,0.00347366,2263.9,2263.3,0.16268623]
[1770174559464,0.00347366,2263.8,2263.3,0.16268623]
[1770174559659,9.66915049,2265.5,2264.1,0.22113]
[1770174559859,0.16809941,2265.4,2263.6,0.22118]
[1770174560164,0.16809941,2265.4,2263.7,0.864]
[1770174560765,0.17212799,2265.4,2263.9,0.22115]
[1770174561770,0.17212799,2265.4,2264.0,0.16795203]
[1770174566077,0.16520222,2265.1,2263.7,0.16795203]
[1770174566374,0.16520222,2264.9,2263.4,0.16795203]
[1770174566577,0.16520222,2264.7,2263.4,0.16795203]
[1770174566779,0.16520222,2264.5,2263.3,0.00368868]
[1770174568077,0.16520222,2264.3,2263.3,0.00368868]
[1770174568380,0.16520222,2264.3,2263.3,0.17164071]
[1770174569383,0.16520222,2264.3,2263.3,0.00368868]
[1770174571581,0.16520222,2264.3,2263.3,0.17164071]
[1770174571789,0.16520222,2264.3,2263.3,0.00368868]
[1770174573986,0.16520222,2264.3,2263.3,0.17164071]
[1770174574786,0.16520222,2264.3,2263.3,0.00368868]
[1770174575683,0.16520222,2264.3,2263.3,0.17164071]
[1770174575884,0.16520222,2264.3,2263.4,0.16795203]
[1770174576284,0.16520222,2264.3,2263.3,0.00368868]
[1770174578092,0.16520222,2264.3,2263.3,0.17164071]
[1770174582492,0.16520222,2264.1,2262.9,0.16795203]
[1770174582994,0.16520222,2264.1,2263.0,0.16795203]
[1770174583594,0.16520222,2264.1,2263.0,0.17330197]
[1770174585895,9.66915049,2264.2,2263.0,0.17330197]
[1770174586094,0.16520222,2264.8,2264.1,0.22113]
[1770174586398,6.5392167,2265.4,2263.9,2.06226227]
[1770174586399,0.1692308,2265.4,2264.3,0.16795203]
[1770174586596,0.1692308,2265.4,2264.2,0.22112]
[1770174587099,0.1692308,2265.4,2264.2,0.38907203]
[1770174587299,0.1692308,2265.4,2264.3,0.16795203]
[1770174589996,0.00402858,2265.4,2264.4,0.16795203]
[1770174590303,0.00402858,2265.4,2264.6,0.16795203]
[1770174590600,0.16520222,2265.9,2264.6,0.17368758]
[1770174590796,0.16520222,2265.9,2264.6,0.39476758]
[1770174590996,0.16520222,2265.9,2264.7,0.15377404]
[1770174591295,0.16520222,2265.9,2264.6,0.00573555]
[1770174591598,0.16961792,2265.9,2264.6,0.15950959]
[1770174591995,2.06226227,2265.8,2264.6,0.00573555]
[1770174592295,0.16751109,2265.7,2264.6,0.00573555]
[1770174593097,0.16751109,2265.6,2264.6,0.00573555]
[1770174593796,0.16751109,2265.6,2263.8,0.15377404]
[1770174594801,0.16751109,2265.6,2263.9,0.15377404]
[1770174595100,0.16751109,2265.6,2264.1,0.15377404]
[1770174596500,0.16751109,2265.6,2264.2,0.15274502]
[1770174597803,0.1677944,2265.4,2264.2,0.15274502]
[1770174602105,0.1677944,2265.4,2263.8,0.004494]
[1770174602106,0.1677944,2265.2,2263.8,0.004494]
[1770174602309,0.1677944,2264.9,2263.8,0.004494]
[1770174604709,0.1677944,2264.9,2263.8,0.15723902]
[1770174606308,5.23928091,2265.1,2263.8,0.15723902]
[1770174606510,0.1677944,2265.5,2264.4,0.15274502]
[1770174606810,0.1677944,2265.5,2264.6,0.22108]
[1770174608406,0.1677944,2265.5,2264.6,0.37382502]
[1770174611105,0.1677944,2265.5,2264.7,0.15274502]
[1770174612804,4.419,2265.8,2264.9,0.15274502]
[1770174613010,0.1677944,2265.7,2264.9,0.15274502]
[1770174613712,0.1677944,2265.7,2264.8,0.22106]
[1770174616514,0.1677944,2265.7,2264.9,0.15274502]
[1770174616813,6.7297944,2265.7,2264.9,0.15274502]
[1770174617013,0.1677944,2265.6,2264.9,0.15274502]
[1770174617814,0.1677944,2265.6,2264.6,0.15274502]
[1770174618210,0.1677944,2265.6,2264.3,0.37385502]
[1770174619107,0.1677944,2265.5,2264.3,0.37385502]
[1770174620014,0.1677944,2265.4,2264.3,0.37385502]
[1770174620609,2.142,2265.3,2264.4,0.3469178]
[1770174620813,6.89002521,2265.3,2264.4,0.3469178]
[1770174621814,6.56,2265.2,2264.4,0.3469178]
[1770174622007,0.32902521,2265.1,2264.0,2.63334095]
[1770174622208,0.32902521,2265.1,2263.9,2.98025875]
[1770174622409,0.32902521,2265.1,2264.0,0.3469178]
[1770174622614,0.32902521,2264.9,2263.8,0.3514118]
[1770174622815,6.56,2264.8,2263.8,0.3514118]
[1770174623111,2.141,2264.8,2263.9,0.3469178]
[1770174623310,0.32902521,2264.7,2263.9,0.3469178]
[1770174625322,6.558,2264.8,2263.9,0.3469178]
[1770174625518,6.88702521,2264.8,2263.9,0.3469178]
[1770174625921,0.32902521,2264.8,2263.9,0.3469178]
[1770174626122,6.88702521,2264.8,2263.9,0.3469178]
[1770174626322,0.32902521,2264.7,2263.9,0.3469178]
[1770174626521,0.32902521,2264.7,2263.8,0.5725718]
[1770174626921,0.32902521,2264.7,2263.8,0.3514118]
[1770174631727,6.558,2264.8,2263.8,0.3514118]
[1770174632331,0.32902521,2264.9,2263.9,0.22114]
[1770174632531,0.32902521,2264.9,2264.0,0.3469178]
[1770174633839,0.32902521,2264.9,2263.8,0.004494]
[1770174634338,0.32902521,2264.9,2263.8,0.3514118]
[1770174635041,0.32902521,2264.9,2263.9,0.3469178]
[1770174635237,0.32902521,2264.9,2263.9,0.5680678]
[1770174635439,6.87902521,2264.9,2264.0,0.3469178]
[1770174635639,6.87902521,2264.9,2264.1,0.3469178]
[1770174636333,12.11830612,2265.1,2264.1,0.3469178]
[1770174636539,0.32902521,2265.1,2264.2,0.3469178]
[1770174636941,0.32902521,2265.1,2264.0,0.3469178]
[1770174637340,2.46002521,2265.1,2264.0,0.3469178]
[1770174637540,6.87902521,2265.1,2264.0,0.3469178]
[1770174638136,0.32902521,2265.1,2264.2,0.3469178]
[1770174638442,0.32902521,2265.1,2264.3,0.3469178]
[1770174640141,0.32902521,2265.0,2263.8,0.3514118]
[1770174640342,0.32902521,2264.9,2263.8,0.3514118]
[1770174641139,0.32902521,2264.9,2263.9,0.3469178]
[1770174641336,0.32902521,2264.9,2264.0,0.3469178]
[1770174641538,6.87502521,2264.9,2264.1,0.3469178]
[1770174641740,0.32902521,2264.9,2264.1,0.3469178]
[1770174642341,5.56830612,2265.3,2264.3,0.3469178]
[1770174642538,6.546,2265.2,2264.3,0.3469178]
[1770174643047,0.32902521,2265.3,2264.3,0.3469178]
[1770174643246,4.74802521,2265.3,2264.4,0.3469178]
[1770174644651,0.32902521,2265.1,2264.3,0.2211]
[1770174644944,0.32902521,2265.1,2264.2,0.3469178]
[1770174644945,0.32902521,2265.1,2264.0,0.3469178]
[1770174645149,6.87402521,2265.0,2264.1,0.3469178]
[1770174646245,6.53518812,2265.3,2265.0,0.5679578]
[1770174646546,3.47398083,2265.9,2265.1,0.75924438]
[1770174646745,0.6521214,2265.7,2264.8,3.94443]
[1770174646947,0.6521214,2265.7,2264.8,8.48045737]
[1770174647149,0.6521214,2265.7,2264.9,4.53602737]
[1770174647349,0.6521214,2265.7,2265.0,4.53602737]
[1770174647546,0.65769028,2265.7,2264.8,3.94443]
[1770174647743,0.63659948,2266.0,2265.0,3.94443]
[1770174648052,4.11058031,2266.3,2265.2,4.16545]
[1770174648253,0.22196456,2266.4,2265.4,0.221]
[1770174648254,3.47398083,2266.2,2265.4,0.221]
[1770174648753,3.47707577,2266.2,2265.5,0.3469178]
[1770174649447,0.88687698,2267.2,2265.6,4.80843]
[1770174649652,0.88687698,2267.2,2265.5,3.94443]
[1770174649954,0.89620959,2266.8,2265.5,3.94443]
[1770174650155,0.89620959,2266.8,2265.6,4.53374367]
[1770174650349,0.89620959,2266.6,2265.4,3.94929038]
[1770174650653,0.88866764,2266.5,2265.4,0.05936834]
[1770174650951,0.88792346,2266.4,2265.4,0.05936834]
[1770174651158,3.46602848,2266.4,2265.4,0.07960953]
[1770174651854,3.46602848,2266.4,2265.4,0.00486038]
[1770174651855,0.88105569,2266.2,2265.4,0.00486038]
[1770174652246,2.57810502,2266.1,2265.4,0.00486038]
[1770174652649,2.57810502,2266.0,2265.4,0.00486038]
[1770174653252,0.00394929,2266.8,2265.5,3.94443]
[1770174653447,0.00394929,2266.8,2265.6,0.18488113]
[1770174653657,1.09079375,2267.3,2266.4,0.18093184]
[1770174653852,1.09276839,2267.7,2266.7,0.18093184]
[1770174654359,1.09276839,2267.6,2266.7,0.18093184]
[1770174654557,1.08246439,2267.3,2266.6,0.22088]
[1770174654852,0.22071,2268.4,2266.0,5.20645187]
[1770174654853,4.418,2268.9,2267.2,0.89695758]
[1770174655054,6.415,2268.8,2267.2,0.901213]
[1770174655356,0.22531243,2268.9,2267.3,0.89695758]
[1770174655357,8.38093,2268.7,2267.3,0.89695758]
[1770174655554,0.00464243,2268.9,2267.5,1.11775758]
[1770174656158,8.38093,2268.8,2267.7,1.4522445]
[1770174656459,0.00464243,2268.9,2267.7,1.4522445]
[1770174656652,0.00464243,2268.9,2267.3,1.6730645]
[1770174656851,1.440392,2268.4,2267.3,1.6730645]
[1770174657355,8.38093,2268.3,2267.3,1.6730645]
[1770174658256,1.440392,2268.4,2267.3,1.6730645]
[1770174658257,8.38093,2268.2,2267.3,1.6730645]
[1770174658458,9.821322,2268.3,2267.3,1.6730645]
[1770174658662,1.440392,2268.3,2267.3,1.6730645]
[1770174658860,9.821322,2268.2,2267.3,1.6730645]
[1770174659054,1.440392,2268.2,2267.3,1.6730645]
[1770174659250,9.821322,2268.2,2267.3,1.6730645]
[1770174660456,8.38093,2268.1,2267.3,1.6730645]
[1770174660656,6.337,2268.3,2267.2,0.00425542]
[1770174660657,1.440392,2267.7,2267.2,0.00425542]
[1770174660961,6.337,2268.3,2266.7,1.4522445]
[1770174660962,9.821322,2267.6,2266.7,1.4522445]
[1770174661159,1.440392,2267.6,2266.7,1.4522445]
[1770174661362,8.38093,2267.5,2266.7,1.4522445]
[1770174661850,8.38093,2267.1,2266.7,0.00361202]
[1770174662056,8.38093,2267.4,2266.1,1.4522445]
[1770174662253,7.336392,2267.6,2266.5,1.6731445]
[1770174662654,1.440392,2267.9,2266.5,1.4522445]
[1770174662865,15.7820738,2271.5,2266.9,1.6731045]
[1770174662866,5.855392,2268.2,2266.9,1.6731045]
[1770174663064,1.44471007,2268.2,2266.9,1.67857159]
[1770174663354,1.44471007,2268.2,2267.1,1.4522445]
[1770174664562,0.00431807,2268.2,2267.3,1.6730645]
[1770174666661,5.338,2268.8,2267.5,1.4522445]
[1770174666662,1.440392,2268.8,2267.5,1.4522445]
[1770174666867,1.440392,2269.1,2268.0,1.6729945]
[1770174667159,1.440392,2269.1,2268.3,1.4522445]
[1770174667459,0.22057,2269.9,2268.3,1.4522445]
[1770174667460,1.440392,2269.4,2268.3,1.4522445]
[1770174667667,1.44464873,2269.4,2268.3,1.4522445]
[1770174667864,9.821322,2269.1,2268.3,1.4522445]
[1770174668165,1.44464873,2269.4,2268.3,1.4522445]
[1770174668365,8.38093,2269.3,2268.3,1.4522445]
[1770174668763,8.38093,2269.2,2268.3,1.4522445]
[1770174669068,1.44464873,2269.4,2268.3,1.4522445]
[1770174669264,9.82557873,2269.4,2268.3,1.4522445]
[1770174669566,4.414,2270.5,2269.6,1.4522445]
[1770174669862,1.440392,2270.6,2269.6,1.4522445]
[1770174670268,8.38093,2270.2,2269.6,1.4522445]
[1770174670467,0.00495013,2270.2,2269.6,1.4556668]
[1770174670665,12.79988013,2270.2,2269.6,1.4556668]
[1770174670867,8.38093,2270.0,2269.6,1.4556668]
[1770174671363,8.38093,2269.9,2269.6,1.4556668]
[1770174671564,0.00495013,2270.2,2269.6,1.4556668]
[1770174671867,8.38093,2270.0,2269.6,1.4556668]
[1770174672269,8.38093,2269.9,2269.6,0.0034223]
[1770174672469,8.38093,2270.0,2269.6,0.0034223]
[1770174672863,8.38093,2269.9,2269.6,0.0034223]
[1770174673265,8.38093,2269.8,2269.3,1.4522445]
[1770174673461,4.414,2269.9,2269.1,0.22064]
[1770174673667,4.414,2269.7,2269.1,0.22064]
[1770174673867,4.414,2270.1,2269.2,1.4522445]
[1770174674368,12.79493,2270.1,2269.2,1.45616745]
[1770174674571,1.440392,2269.9,2269.2,0.00392295]
[1770174674766,1.440392,2269.9,2268.5,0.2207]
[1770174674767,8.38093,2269.5,2268.5,0.2207]
[1770174674968,1.440392,2269.6,2268.6,1.4522445]
[1770174675265,1.440392,2270.0,2268.6,1.4522445]
[1770174675465,4.414,2269.8,2269.1,1.6728845]
[1770174675969,8.38093,2269.7,2269.1,1.6728845]
[1770174676270,4.414,2269.8,2269.1,0.22064]
[1770174676468,8.38093,2269.6,2269.1,0.22064]
[1770174676669,4.414,2269.8,2269.1,0.22064]
[1770174676670,8.38093,2269.5,2269.1,0.22064]
[1770174676962,8.38093,2269.6,2268.8,1.4522445]
[1770174677169,12.79493,2269.7,2269.1,0.00439022]
[1770174677366,0.00495013,2270.2,2269.2,1.4522445]
[1770174677566,1.440392,2271.1,2269.9,1.6728045]
[1770174677770,3.9536,2271.1,2270.4,1.6727645]
[1770174678070,3.50596456,2271.2,2270.6,0.2205]
[1770174678467,11.88689456,2271.2,2270.6,1.6727445]
[1770174678670,11.89135181,2271.2,2270.6,1.6727445]
[1770174679569,2.52772563,2272.5,2271.4,0.22042]
[1770174679866,2.53218288,2272.4,2270.9,0.862]
[1770174680066,2.52772563,2272.0,2270.7,4.63048]
[1770174680266,2.52772563,2272.0,2270.8,0.22048]
[1770174680467,2.52772564,2271.7,2270.8,0.00418463]
[1770174680673,7.16857,2271.6,2270.8,0.00418463]
[1770174680971,7.16857,2271.5,2270.8,0.00418463]
[1770174681169,0.00445725,2271.6,2270.8,0.00418463]
[1770174681371,0.00434324,2272.0,2270.8,0.00418463]
[1770174681868,0.00434324,2272.0,2271.5,0.22041]
[1770174682069,2.52666005,2272.5,2271.5,0.22041]
[1770174682373,6.72149,2272.3,2271.0,0.22046]
[1770174682572,2.52666005,2272.2,2271.3,0.22043]
[1770174682778,2.52666005,2272.2,2270.8,0.00418463]
[1770174682779,2.52666005,2272.5,2271.6,0.2204]
[1770174682970,0.00343285,2272.5,2272.0,0.22036]
[1770174683166,0.01036597,2273.0,2272.2,0.22034]
[1770174683369,0.00445725,2272.8,2272.2,0.22034]
[1770174683572,0.01036597,2273.0,2272.2,0.22034]
[1770174683767,2.54280513,2272.9,2271.2,3.94443]
[1770174683973,2.54280513,2272.9,2271.1,5.20645187]
[1770174683974,2.52666005,2272.4,2271.1,0.22045]
[1770174684271,2.52666005,2272.4,2270.8,0.00418463]
[1770174684272,6.72149,2272.3,2271.4,0.22041]
[1770174684477,2.53173125,2272.4,2271.4,0.22041]
[1770174684671,6.72149,2272.2,2271.4,0.22041]
[1770174684877,2.53173125,2272.4,2270.8,0.00418463]
[1770174684878,6.72149,2271.8,2270.8,0.00418463]
[1770174685078,2.52666005,2272.0,2270.8,0.00418463]
[1770174685278,6.72149,2271.7,2270.8,0.00418463]
[1770174685573,2.52666005,2271.8,2270.8,0.00418463]
[1770174685879,6.72149,2271.7,2270.8,0.22466463]
[1770174686579,6.72149,2271.6,2270.8,0.22466463]
[1770174686774,2.52666005,2272.3,2270.8,0.00418463]
[1770174686979,0.0050712,2272.4,2270.8,0.00418463]
[1770174687480,2.52666005,2272.2,2270.8,0.00418463]
[1770174687779,2.52666005,2271.7,2270.9,0.22046]
[1770174688281,6.72149,2271.4,2270.8,0.00418463]
[1770174688485,9.24815005,2271.3,2270.8,0.00418463]
[1770174688675,2.52666005,2271.3,2270.8,0.00418463]
[1770174688881,6.72149,2270.9,2270.5,4.409]
[1770174689080,9.24815005,2271.0,2270.5,4.4054087]
[1770174689280,2.52666005,2271.4,2270.5,4.4054087]
[1770174689482,2.52666005,2271.3,2270.5,4.4054087]
[1770174689677,6.72149,2271.2,2270.5,4.4054087]
[1770174689875,2.52666005,2271.9,2270.7,0.22049]
[1770174690084,2.52666005,2271.9,2270.8,0.22047]
[1770174690283,6.26409,2271.7,2270.8,0.22047]
[1770174690686,2.52666005,2272.2,2271.4,0.22042]
[1770174691181,5.82013,2272.0,2271.4,0.22042]
[1770174691382,8.34679005,2271.7,2271.1,0.861]
[1770174691585,2.52666005,2271.7,2271.1,0.861]
[1770174691886,5.82013,2271.2,2270.7,0.22562792]
[1770174692086,5.82013,2271.3,2270.7,0.22562792]
[1770174692285,5.82013,2271.6,2270.7,0.22562792]
[1770174692685,5.82013,2271.5,2270.8,0.22047]
[1770174692884,8.34679005,2271.6,2270.8,0.22047]
[1770174693186,2.52666005,2271.6,2270.9,0.22047]
[1770174693387,2.52666005,2271.6,2270.7,0.00513792]
[1770174693388,8.34679005,2271.3,2270.7,0.00513792]
[1770174693681,2.52666005,2271.1,2270.5,3.3314087]
[1770174693885,2.52666005,2271.0,2269.7,4.16501]
[1770174694185,2.52666005,2271.0,2269.6,3.94443]
[1770174694386,2.52666005,2271.0,2269.7,3.94443]
[1770174694588,2.52666005,2270.8,2269.7,0.00364084]
[1770174694787,2.53020952,2270.8,2269.7,0.00364084]
[1770174694986,5.82013,2270.7,2269.7,0.00364084]
[1770174695388,5.82013,2270.6,2269.7,0.00364084]
[1770174695588,8.34679005,2270.6,2270.1,0.22054]
[1770174695789,2.52666005,2270.4,2269.7,0.00364084]
[1770174695988,2.52666005,2270.2,2269.7,0.00364084]
[1770174696191,8.34679005,2270.2,2269.7,0.00364084]
[1770174696383,2.52666005,2270.2,2269.7,0.00364084]
[1770174696587,3.60829,2269.9,2269.7,0.00364084]
[1770174696785,2.67951,2270.0,2269.7,0.00364084]
[1770174696986,2.67951,2269.9,2269.7,0.00364084]
[1770174697289,2.52666005,2269.7,2269.5,0.2206]
[1770174697483,2.52666005,2269.7,2269.2,0.861]
[1770174697687,1.09018,2269.6,2269.2,0.861]
[1770174697891,2.52666005,2270.0,2269.2,0.861]
[1770174698188,3.61684005,2269.7,2269.2,0.8650486]
[1770174698388,2.52666005,2269.7,2269.2,0.8650486]
[1770174699294,2.51796816,2270.7,2269.2,0.8650486]
[1770174700487,2.51796816,2270.7,2269.2,5.42577565]
[1770174700693,2.73845816,2270.7,2269.0,4.406]
[1770174700890,2.69208915,2270.5,2268.6,3.94443]
[1770174701091,2.47157915,2270.3,2268.6,2.53058678]
[1770174701592,2.47157915,2270.3,2268.6,0.22069]
[1770174701783,2.47157915,2270.3,2268.6,0.22514966]
[1770174701982,2.47157915,2270.3,2268.6,7.08779679]
[1770174701983,2.47157915,2270.2,2268.6,7.08779679]
[1770174702188,2.47157915,2270.2,2268.7,2.30989678]
[1770174702487,2.47157915,2270.2,2268.7,4.55195124]
[1770174702693,2.47157915,2270.2,2268.6,2.31435644]
[1770174702891,2.47157915,2270.2,2268.8,2.53056678]
[1770174703393,2.47157915,2270.2,2268.8,0.22067]
[1770174703798,2.47157915,2270.0,2268.8,2.30989678]
[1770174704093,2.47157915,2270.0,2269.2,0.22063]
[1770174704494,0.00354947,2270.8,2269.2,2.30989678]
[1770174704495,2.47157915,2270.7,2269.2,2.30989678]
[1770174704690,2.47157915,2270.7,2268.9,6.25432678]
[1770174704895,2.47157915,2270.7,2269.0,4.54882027]
[1770174705089,2.47157915,2270.7,2268.9,2.30989678]
[1770174705290,2.47157915,2270.7,2268.8,1.08167]
[1770174705590,2.47157915,2270.7,2268.9,0.22066]
[1770174706088,2.47157915,2270.5,2269.0,0.22065]
[1770174706593,2.47157915,2270.5,2269.3,0.22062]
[1770174706793,2.47157915,2270.5,2269.2,2.30989678]
[1770174706991,2.47157915,2270.5,2269.3,2.30989678]
[1770174707487,0.00354947,2270.8,2270.3,0.22053]
[1770174707693,2.47157915,2271.4,2270.6,0.22049]
[1770174708885,2.47721934,2271.4,2270.6,0.22475917]
[1770174709595,0.00564019,2271.4,2270.7,2.53038678]
[1770174709790,2.47157915,2271.7,2270.8,5.1362783]
[1770174709991,2.47157915,2271.7,2270.8,0.22047]
[1770174710593,2.47157915,2271.7,2270.8,2.53036678]
[1770174710794,2.47703974,2271.7,2270.8,2.53036678]
[1770174712297,2.47703974,2271.7,2270.8,5.1362783]
[1770174712799,0.00546059,2271.7,2270.9,2.51201917]
[1770174712994,0.00546059,2271.7,2271.0,0.22045]
[1770174713199,2.31755734,2272.3,2271.3,2.51197917]
[1770174713797,2.31755734,2272.3,2271.4,0.22042]
[1770174714095,2.32159493,2272.3,2271.4,0.22042]
[1770174714292,2.32159493,2272.3,2271.2,0.861]
[1770174714488,4.41868783,2272.9,2271.2,0.861]
[1770174714489,0.01168783,2272.9,2271.7,2.29154917]
[1770174714693,0.01168783,2272.9,2272.2,2.51188917]
[1770174714899,7.83432674,2275.0,2272.8,2.29154917]
[1770174715090,4.407,2275.0,2273.5,2.29154917]
[1770174715291,6.501,2275.0,2273.5,2.29154917]
[1770174715492,6.501,2275.0,2273.5,2.29557886]
[1770174715493,6.50530158,2275.0,2273.5,2.29557886]
[1770174715905,6.50530158,2275.0,2273.5,0.00402969]
[1770174716097,6.50530158,2275.0,2273.5,2.29838705]
[1770174716291,0.00430158,2275.0,2273.7,2.29435736]
[1770174716491,2.44573788,2275.0,2273.7,2.51454736]
[1770174716698,2.4414363,2274.8,2273.2,2.60591152]
[1770174716892,2.4414363,2274.8,2272.7,2.29435736]
[1770174717093,2.4414363,2274.6,2272.7,2.51464736]
[1770174717299,2.4414363,2274.4,2272.7,2.51464736]
[1770174717599,2.4414363,2274.4,2272.3,2.29435736]
[1770174717792,2.4414363,2274.4,2272.3,2.52015799]
[1770174718800,2.4414363,2273.9,2272.3,0.00547063]
[1770174719300,2.4414363,2273.7,2272.3,2.29982799]
[1770174719600,2.4414363,2273.7,2272.3,0.00547063]
[1770174720301,2.4414363,2273.4,2271.5,2.51476736]
[1770174720502,2.4414363,2273.2,2271.5,2.51476736]
[1770174720899,2.4414363,2273.0,2271.5,2.51476736]
[1770174721203,2.4414363,2272.8,2271.5,2.29435736]
[1770174721393,2.4414363,2272.8,2271.5,0.00513324]
[1770174721598,2.4414363,2272.6,2271.0,2.51481736]
[1770174722599,7.83432674,2275.8,2274.7,0.22009]
[1770174722797,2.4414363,2277.1,2275.5,2.85661649]
[1770174722994,2.4414363,2277.1,2275.6,2.29435736]
[1770174723202,2.4414363,2276.8,2275.3,0.22004]
[1770174723698,8.7968,2276.2,2274.9,2.29435736]
[1770174723897,2.4414363,2276.1,2274.9,0.00512343]
[1770174724405,2.4414363,2275.1,2274.1,4.404]